bitfinex/quotes_SOLUSD_20240925
["timestamp","ask_amount","ask_price","bid_price","bid_amount"]
[1727287538672,30.273084,149.92,149.84,0.2440485]
[1727287539159,15.3491,149.91,149.84,0.2440485]
[1727287539331,6.6723,149.88,149.84,0.2440485]
[1727287539652,21.6843,149.85,149.84,0.2440485]
[1727287544667,28.3576,149.85,149.84,0.2440485]
[1727287544973,6.6748,149.82,149.79,0.2697447]
[1727287545158,6.6742,149.83,149.79,0.2697447]
[1727287545672,45.461184,149.85,149.79,0.2697447]
[1727287545891,6.6738,149.84,149.79,0.2697447]
[1727287546062,21.6843,149.85,149.8,1.33501721]
[1727287546251,21.6843,149.85,149.79,19.00398584]
[1727287547876,21.6843,149.85,149.8,1.33482232]
[1727287548068,21.6843,149.85,149.8,21.33482232]
[1727287548368,21.6843,149.85,149.8,20.0]
[1727287548770,21.6843,149.85,149.81,1.3347256]
[1727287549485,21.6843,149.85,149.79,19.00398584]
[1727287549685,21.6843,149.85,149.8,21.33472572]
[1727287549981,15.3491,149.85,149.81,18.73424114]
[1727287550277,21.8125,149.89,149.82,21.334643]
[1727287551087,21.8125,149.89,149.82,20.0]
[1727287552585,21.8125,149.89,149.83,20.06879248]
[1727287552763,21.8125,149.89,149.83,18.73424114]
[1727287552959,21.8125,149.89,149.8,18.73424114]
[1727287552960,15.1832,149.89,149.85,18.73424114]
[1727287553662,15.1832,149.89,149.86,1.33431789]
[1727287555086,22.002,149.93,149.86,1.33431789]
[1727287555666,22.002,149.93,149.85,18.73424114]
[1727287556183,22.002,149.93,149.86,21.33408503]
[1727287556387,22.002,149.93,149.86,20.0]
[1727287558374,28.6717,149.93,149.86,20.0]
[1727287559566,28.6717,149.93,149.87,1.33425559]
[1727287559766,28.6717,149.93,149.86,20.0]
[1727287560383,22.002,149.93,149.87,1.33419099]
[1727287560589,22.002,149.93,149.87,20.06843213]
[1727287560769,22.002,149.93,149.87,18.73424114]
[1727287561894,28.6718,149.93,149.86,20.0]
[1727287562187,6.6703,149.92,149.86,20.0]
[1727287562793,22.002,149.93,149.87,1.33425987]
[1727287562994,22.002,149.93,149.87,20.06850101]
[1727287563365,22.002,149.93,149.89,18.73424114]
[1727287563698,0.2697447,149.96,149.9,21.3339478]
[1727287563903,0.2697447,149.96,149.91,18.73424114]
[1727287564396,0.2697447,149.96,149.92,21.33369963]
[1727287564592,0.2697447,149.96,149.92,20.0]
[1727287565375,0.2697447,149.96,149.93,18.73424114]
[1727287565580,0.2697447,149.96,149.95,18.73424114]
[1727287565877,0.2697447,149.96,149.95,38.73424114]
[1727287567200,0.2697447,149.96,149.91,20.0]
[1727287567385,0.2697447,149.96,149.93,18.73424114]
[1727287567574,0.2697447,149.96,149.94,21.33350192]
[1727287569276,0.2697447,149.96,149.94,20.0]
[1727287570199,0.2697447,149.96,149.95,40.06762719]
[1727287571072,0.2697447,149.96,149.95,38.73424114]
[1727287571674,0.2697447,149.96,149.95,62.51112514]
[1727287574305,0.2697447,150.01,149.96,43.776884]
[1727287574495,0.2697447,150.01,149.99,20.0]
[1727287574679,0.2697447,150.01,150.0,1.33303745]
[1727287575504,0.2697447,150.01,150.0,1.33301932]
[1727287576273,0.2697447,150.01,149.99,20.0]
[1727287576475,22.9256,150.0,149.92,8.4267862]
[1727287576792,22.9256,150.0,149.91,18.73424114]
[1727287577093,29.5923,150.0,149.91,18.73424114]
[1727287577303,22.9256,150.0,149.92,1.33354482]
[1727287577681,29.5923,150.0,149.93,1.33354067]
[1727287577881,22.9256,150.0,149.93,1.33354067]
[1727287578696,22.9256,150.0,149.92,20.0]
[1727287578898,22.9256,150.0,149.93,20.06778623]
[1727287579297,22.9256,150.0,149.94,20.0]
[1727287579592,22.9256,150.0,149.95,20.06762152]
[1727287579798,22.9256,150.0,149.96,20.0]
[1727287579992,22.9256,150.0,149.97,1.33338159]
[1727287581104,16.3215,150.0,149.97,1.33338159]
[1727287581301,0.2697447,150.01,149.97,20.06762273]
[1727287581500,0.2697447,150.01,149.98,21.33315449]
[1727287582094,0.2697447,150.01,149.98,20.0]
[1727287582405,0.2697447,150.01,149.91,15.11798838]
[1727287582406,0.2697447,150.01,149.96,20.0]
[1727287586304,0.2697447,150.01,149.98,20.0]
[1727287587008,0.2697447,150.01,149.94,23.776884]
[1727287587186,0.2697447,150.01,149.95,38.73424114]
[1727287587386,0.2697447,150.01,149.96,1.33325978]
[1727287587604,0.2697447,150.01,149.95,38.73424114]
[1727287587982,0.2697447,150.01,149.94,20.0]
[1727287588413,0.2697447,150.01,149.95,1.33339429]
[1727287588585,0.2697447,150.01,149.94,20.0]
[1727287590109,0.2697447,150.01,149.95,1.33337413]
[1727287590496,0.2697447,150.01,149.94,20.0]
[1727287590699,0.2697447,150.01,149.96,21.33337431]
[1727287590902,0.2697447,150.01,149.97,1.33337398]
[1727287591211,0.2697447,150.01,149.98,20.0]
[1727287591413,0.2697447,150.01,149.99,1.33305362]
[1727287594019,0.2697447,150.01,150.0,1.33304895]
[1727287594399,0.2697447,150.01,149.96,18.73424114]
[1727287594599,0.2697447,150.01,149.97,21.33326047]
[1727287596015,0.1804173,150.01,149.97,21.33326047]
[1727287597407,0.1804173,150.01,149.99,20.0]
[1727287598721,0.1804173,150.01,150.0,1.33314767]
[1727287599027,0.1804173,150.01,149.99,20.0]
[1727287600518,0.1804173,150.01,149.99,1.33311792]
[1727287601613,0.1804173,150.01,149.98,1.33320703]
[1727287603308,0.1804173,150.01,149.99,20.0]
[1727287603613,0.1804173,150.01,150.0,1.33310963]
[1727287606707,0.1804173,150.01,149.99,20.0]
[1727287608037,0.1804173,150.01,150.0,40.06724843]
[1727287608337,0.1804173,150.01,150.0,48.54027358]
[1727287608518,0.1804173,150.01,150.0,40.06724843]
[1727287609136,0.1804173,150.01,150.0,38.73424114]
[1727287618455,0.1804173,150.01,150.0,33.66825189]
[1727287619433,0.4212686,150.03,150.01,20.0]
[1727287619633,0.4212686,150.03,150.02,15.00098617]
[1727287619851,0.4212686,150.03,150.02,35.00098617]
[1727287620155,15.7779729,150.08,150.03,20.0]
[1727287620452,0.2439729,150.08,150.07,13.66825189]
[1727287622455,0.2439729,150.08,150.07,21.33863095]
[1727287623559,0.2439729,150.08,150.07,41.33863095]
[1727287624335,0.2439729,150.08,150.05,21.33863095]
[1727287624541,0.2439729,150.08,150.04,20.0]
[1727287624749,0.2439729,150.08,150.01,21.33863095]
[1727287624950,6.4921,150.06,149.99,21.33863095]
[1727287626163,6.4921,150.06,150.0,20.0]
[1727287626556,6.4921,150.06,150.01,1.33286443]
[1727287627055,6.4921,150.06,150.01,22.67149538]
[1727287627238,6.4921,150.06,150.02,20.0]
[1727287627566,6.4921,150.06,150.03,1.33280922]
[1727287629438,6.4921,150.06,150.02,20.0]
[1727287629633,6.4921,150.06,150.0,20.0]
[1727287630652,6.4921,150.06,149.97,28.03563095]
[1727287630870,6.4921,150.06,149.97,6.697]
[1727287630871,6.6653,150.04,149.97,6.697]
[1727287631074,6.6645,150.05,149.98,1.33316925]
[1727287631363,6.4921,150.06,149.97,21.33863095]
[1727287632740,6.4921,150.06,149.98,20.0]
[1727287635763,13.1562,150.06,149.98,20.0]
[1727287636364,6.6662,150.01,149.93,20.0]
[1727287636542,6.666,150.02,149.93,20.0]
[1727287636741,6.666,150.02,149.92,21.58260385]
[1727287637068,15.6108,150.01,149.92,21.58260385]
[1727287637975,15.6108,150.01,149.94,21.33863095]
[1727287638156,15.6108,150.01,149.95,20.0]
[1727287638467,15.6108,150.01,149.96,22.67207287]
[1727287638657,15.6108,150.01,149.97,20.0]
[1727287638971,15.6108,150.01,149.98,1.3333796]
[1727287639271,6.2276,150.03,150.0,21.33863095]
[1727287639568,16.5848,150.05,150.01,1.33302736]
[1727287639962,16.5848,150.05,150.01,21.33302736]
[1727287642875,16.5848,150.05,150.02,21.33863095]
[1727287643059,6.4581,150.07,150.03,1.33284079]
[1727287644861,6.4581,150.07,150.02,21.33863095]
[1727287646263,6.4581,150.07,150.0,21.33863095]
[1727287646454,6.4581,150.07,150.01,20.0]
[1727287646974,6.4581,150.07,150.02,22.6716194]
[1727287647274,6.4581,150.07,149.98,20.0]
[1727287647483,6.4581,150.07,150.02,20.0]
[1727287648272,6.4581,150.07,150.03,1.33279523]
[1727287648979,0.2439729,150.08,150.04,20.0]
[1727287649161,0.2439729,150.08,150.05,1.33266174]
[1727287649674,0.2439729,150.08,150.04,20.0]
[1727287650165,0.2439729,150.08,150.06,20.0]
[1727287650952,0.2439729,150.08,150.07,41.33863095]
[1727287652467,0.2439729,150.08,150.06,20.0]
[1727287653066,0.2439729,150.08,150.04,20.0]
[1727287653281,0.2439729,150.08,150.03,21.33863095]
[1727287653779,0.2439729,150.08,150.04,1.33264739]
[1727287654686,0.2439729,150.08,150.04,21.33264739]
[1727287655357,0.2439729,150.08,150.05,21.33863095]
[1727287655556,0.2439729,150.08,150.06,21.33251995]
[1727287656859,0.2439729,150.08,150.06,20.0]
[1727287657975,0.2439729,150.08,150.07,1.33254605]
[1727287658173,0.2439729,150.08,150.06,20.0]
[1727287659265,0.2439729,150.08,150.06,21.33254737]
[1727287662483,0.2439729,150.08,150.07,21.33863095]
[1727287663168,0.2439729,150.08,150.07,41.33863095]
[1727287666986,0.2439729,150.08,150.07,42.67104169]
[1727287667183,0.4212686,150.13,150.08,20.0]
[1727287667385,0.4212686,150.13,150.1,20.0]
[1727287667872,0.4212686,150.13,150.1,21.33225269]
[1727287668079,0.4212686,150.13,150.1,20.0]
[1727287669476,0.4212686,150.13,150.11,1.33210832]
[1727287669667,0.4212686,150.13,150.1,20.0]
[1727287670565,0.4212686,150.13,150.08,20.0]
[1727287674386,0.4212686,150.13,150.11,13.65400757]
[1727287678785,0.4212686,150.13,150.12,1.33213697]
[1727287680194,0.4212686,150.13,150.11,13.65400757]
[1727287680395,0.4212686,150.13,150.12,1.33210839]
[1727287680704,0.4212686,150.13,150.11,20.0]
[1727287681093,0.4212686,150.13,150.12,13.65400757]
[1727287681617,0.4212686,150.13,150.11,20.0]
[1727287681786,0.4212686,150.13,150.1,20.0]
[1727287682499,0.4212686,150.13,150.09,21.14594069]
[1727287682677,0.4212686,150.13,150.09,20.0]
[1727287682882,0.4212686,150.13,150.08,13.65400757]
[1727287685279,0.4212686,150.13,150.1,13.65400757]
[1727287689609,0.4212686,150.13,150.1,19.70400757]
[1727287691696,0.4212686,150.13,150.12,13.65400757]
[1727287691903,0.4212686,150.13,150.12,33.65400757]
[1727287693099,0.4212686,150.13,150.11,8.55439215]
[1727287693307,0.4212686,150.13,150.1,6.05]
[1727287693816,13.0115,150.12,150.1,6.05]
[1727287693981,0.4212686,150.13,150.1,6.05]
[1727287695690,0.4212686,150.13,150.1,14.6223056]
[1727287695889,30.339884,150.12,150.1,6.05]
[1727287696107,6.563,150.12,150.1,6.05]
[1727287697492,23.776884,150.11,150.1,6.05]
[1727287699915,6.563,150.12,150.1,6.05]
[1727287702286,0.4212686,150.13,150.1,6.05]
[1727287704095,7.0823686,150.13,150.1,6.05]
[1727287705311,0.4212686,150.13,150.1,6.05]
[1727287706619,7.0821686,150.13,150.1,6.05]
[1727287707016,45.789184,150.11,150.1,6.05]
[1727287707396,65.829184,150.11,150.1,6.05]
[1727287707794,45.789184,150.11,150.1,6.05]
[1727287709503,85.829184,150.11,150.1,6.05]
[1727287709917,92.217784,150.11,150.1,6.05]
[1727287710120,20.04,150.09,149.98,15.1723]
[1727287710322,23.776884,150.03,149.97,0.2439729]
[1727287711006,23.776884,150.04,149.97,0.2439729]
[1727287712799,20.0,150.1,149.97,20.2439729]
[1727287713113,6.6635,150.07,149.97,20.2439729]
[1727287713417,23.776884,150.06,149.99,20.0]
[1727287713724,23.776884,150.08,150.0,1.33312647]
[1727287713910,6.6627,150.09,150.0,1.33312647]
[1727287713911,6.6624,150.1,150.01,20.0]
[1727287714101,6.6624,150.1,150.02,1.33297768]
[1727287714418,28.4013,150.11,150.02,1.33297768]
[1727287715002,28.4013,150.11,150.01,36.1578]
[1727287715418,28.4013,150.11,150.02,1.33287984]
[1727287715726,23.776884,150.09,150.01,36.1578]
[1727287716100,21.7392,150.11,150.03,20.0]
[1727287716316,28.401,150.11,150.03,20.0]
[1727287716704,0.4212686,150.13,150.04,1.3327796]
[1727287717026,0.4212686,150.13,150.04,22.68652939]
[1727287717216,0.4212686,150.13,150.05,20.0]
[1727287717418,0.4212686,150.13,150.06,22.68638722]
[1727287717816,0.4212686,150.13,150.07,20.0]
[1727287718018,0.4212686,150.13,150.07,21.332575]
[1727287720025,7.0824686,150.13,150.07,20.0]
[1727287720207,6.6613,150.12,150.05,20.0]
[1727287720409,6.6618,150.11,150.05,20.0]
[1727287720609,6.6618,150.11,150.02,21.35374979]
[1727287720812,6.6622,150.1,150.02,21.35374979]
[1727287721010,0.4212686,150.13,150.02,21.35374979]
[1727287721215,23.776884,150.1,150.02,21.35374979]
[1727287721723,23.776884,150.11,150.02,21.35374979]
[1727287721928,23.776884,150.11,150.03,21.3328258]
[1727287724436,23.776884,150.11,150.03,20.0]
[1727287724629,30.438684,150.11,150.03,20.0]
[1727287725219,23.776884,150.11,150.03,21.33284417]
[1727287725420,23.776884,150.11,150.05,20.0]
[1727287726231,30.438684,150.11,150.02,41.35374979]
[1727287726417,6.6627,150.09,150.02,41.35374979]
[1727287728443,6.6627,150.09,150.02,20.0]
[1727287728609,6.6632,150.08,150.02,20.0]
[1727287729439,23.776884,150.07,150.02,20.0]
[1727287730533,30.440384,150.07,150.02,20.0]
[1727287732324,6.664,150.06,150.0,20.0]
[1727287732622,23.776884,150.05,149.98,20.0]
[1727287734032,23.776884,150.05,149.99,1.33329501]
[1727287735020,23.776884,150.05,149.98,21.33328833]
[1727287736156,23.776884,150.05,149.98,20.0]
[1727287736363,30.441284,150.05,149.98,20.0]
[1727287737056,23.776884,150.06,149.98,20.0]
[1727287737443,23.776884,150.04,149.98,20.0]
[1727287738262,30.441784,150.04,149.98,20.0]
[1727287741155,22.3065,150.09,149.98,20.0]
[1727287741156,42.3465,150.09,149.98,20.0]
[1727287741343,22.3065,150.09,150.01,20.0]
[1727287741542,6.6639,150.07,150.01,20.0]
[1727287741880,22.3065,150.09,150.01,20.0]
[1727287742062,6.664,150.06,149.98,21.35374979]
[1727287742272,22.3065,150.09,149.99,21.33324879]
[1727287742560,42.3465,150.09,149.99,21.33324879]
[1727287742747,23.776884,150.06,149.99,21.33324879]
[1727287743152,28.9693,150.09,150.01,20.0]
[1727287743460,6.6628,150.09,150.01,21.33310535]
[1727287744664,6.6628,150.09,150.01,27.41170535]
[1727287744838,6.6628,150.09,150.02,16.0062]
[1727287745035,6.6628,150.09,150.02,17.33920994]
[1727287745465,6.6635,150.08,150.02,16.0062]
[1727287745644,6.6635,150.07,150.02,16.0062]
[1727287746142,23.776884,150.06,150.02,16.0062]
[1727287746844,20.0,150.11,150.02,17.339356]
[1727287747164,23.776884,150.08,150.02,17.339356]
[1727287747341,6.6625,150.1,150.02,38.69310579]
[1727287748968,23.776884,150.09,150.02,38.69310579]
[1727287749666,6.6631,150.08,150.02,16.0062]
[1727287750041,6.6637,150.07,150.02,16.0062]
[1727287750466,23.776884,150.09,150.02,16.0062]
[1727287750670,23.776884,150.09,150.02,17.33918361]
[1727287751366,23.776884,150.09,150.03,20.0]
[1727287751863,6.6631,150.08,150.03,20.0]
[1727287752070,30.439584,150.09,150.03,20.0]
[1727287752681,23.776884,150.09,150.03,21.33293725]
[1727287753248,30.439484,150.09,150.03,21.33293725]
[1727287753443,30.439484,150.09,150.03,20.0]
[1727287754283,30.439484,150.09,150.03,21.33292223]
[1727287755068,30.439484,150.09,150.03,20.0]
[1727287755479,6.6632,150.08,150.03,20.0]
[1727287755768,30.440384,150.07,150.03,20.0]
[1727287756350,6.6632,150.08,150.03,20.0]
[1727287756955,23.776884,150.08,150.03,20.0]
[1727287759473,30.440084,150.08,150.03,20.0]
[1727287759681,23.776884,150.08,150.03,20.0]
[1727287761177,16.6538,150.12,150.03,21.33298765]
[1727287761365,23.776884,150.09,150.03,27.37908765]
[1727287762060,0.4212686,150.13,150.04,21.35374979]
[1727287762279,0.4212686,150.13,150.05,20.0]
[1727287762280,6.6618,150.11,150.05,20.0]
[1727287762862,0.4212686,150.13,150.05,20.0]
[1727287762863,6.6614,150.12,150.05,20.0]
[1727287763864,23.776884,150.1,150.05,20.0]
[1727287764063,6.6622,150.1,150.04,20.0]
[1727287764363,6.6622,150.1,150.04,28.56378]
[1727287765684,6.6619,150.11,150.04,29.89661749]
[1727287765863,23.776884,150.1,150.04,51.25036728]
[1727287766582,23.776884,150.1,150.04,42.68658728]
[1727287766782,23.776884,150.1,150.05,8.57075395]
[1727287766954,0.4212686,150.13,150.06,20.0]
[1727287767154,7.0824686,150.13,150.06,20.0]
[1727287767359,6.6614,150.12,150.06,20.0]
[1727287767862,6.6614,150.12,150.05,20.0]
[1727287769369,6.6629,150.09,150.04,20.0]
[1727287769578,23.776884,150.08,150.04,20.0]
[1727287770078,6.6622,150.1,150.04,20.0]
[1727287770376,23.776884,150.09,150.04,33.66709647]
[1727287770569,0.4212686,150.13,150.04,33.66709647]
[1727287770776,23.776884,150.1,150.04,33.66709647]
[1727287772271,30.439184,150.1,150.04,20.0]
[1727287773365,6.6627,150.09,150.04,20.0]
[1727287774870,23.776884,150.08,150.04,20.0]
[1727287776084,6.6622,150.1,150.04,20.0]
[1727287779372,64.2381526,150.13,150.04,20.0]
[1727287779578,44.2381526,150.13,150.04,20.0]
[1727287779889,6.6631,150.08,150.03,19.71319647]
[1727287780262,56.6935,150.12,150.03,19.71319647]
[1727287780263,36.6935,150.12,150.03,19.71319647]
[1727287780482,30.439984,150.08,150.03,6.0461]
[1727287784469,6.6635,150.07,150.02,16.0062]
[1727287784675,23.776884,150.06,150.02,16.0062]
[1727287786786,30.441084,150.06,150.02,16.0062]
[1727287787401,23.776884,150.06,150.02,16.0062]
[1727287788980,6.6645,150.05,150.02,16.0062]
[1727287789300,30.441184,150.06,150.02,16.0062]
[1727287791095,30.441184,150.06,149.99,19.91809647]
[1727287791795,30.441184,150.06,149.99,6.251]
[1727287791996,23.776884,150.04,149.98,15.9661]
[1727287792395,23.776884,150.01,149.98,15.9661]
[1727287792593,23.776884,150.01,149.97,0.2439729]
[1727287792981,30.443384,150.01,149.97,0.2439729]
[1727287793295,23.776884,149.99,149.97,0.2439729]
[1727287794300,23.776884,150.0,149.97,0.2439729]
[1727287796702,23.776884,150.01,149.97,0.2439729]
[1727287797782,30.443184,150.01,149.97,0.2439729]
[1727287799681,23.776884,150.01,149.97,0.2439729]
[1727287799888,6.6666,150.0,149.97,0.2439729]
[1727287800080,23.776884,150.01,149.97,0.2439729]
[1727287800284,30.443184,150.01,149.97,0.2439729]
[1727287803806,21.9886,150.1,149.99,13.66709647]
[1727287804116,6.6638,150.07,149.99,29.17429647]
[1727287804409,6.6638,150.07,150.0,21.33317817]
[1727287804625,6.6638,150.07,150.0,20.0]
[1727287805387,23.776884,150.06,150.0,20.0]
[1727287807619,30.440984,150.06,150.0,20.0]
[1727287808705,23.776884,150.06,150.0,20.0]
[1727287809105,6.6631,150.08,150.01,13.66709647]
[1727287809490,21.9886,150.1,150.0,20.0]
[1727287809707,6.6635,150.07,150.0,33.66709647]
[1727287810093,6.664,150.06,150.0,33.66709647]
[1727287810404,6.664,150.06,150.0,20.0]
[1727287810609,23.776884,150.05,150.0,20.0]
[1727287811810,23.776884,150.06,150.0,20.0]
[1727287812418,23.776884,150.06,150.0,21.33319329]
[1727287812723,23.776884,150.07,150.0,21.33319329]
[1727287815018,23.776884,150.07,150.0,26.0326]
[1727287815414,30.440384,150.07,150.0,26.0326]
[1727287816891,23.776884,150.07,150.0,26.0326]
[1727287817224,6.6641,150.06,150.0,26.0326]
[1727287817515,36.6969,150.09,150.0,26.0326]
[1727287817516,16.6538,150.12,150.02,13.66709647]
[1727287817690,6.6623,150.1,150.02,15.00011676]
[1727287818512,6.6623,150.1,150.04,13.66709647]
[1727287819020,6.6627,150.09,150.02,13.66709647]
[1727287819231,23.776884,150.08,150.02,13.66709647]
[1727287819523,30.440084,150.08,150.0,26.0326]
[1727287819815,30.440084,150.08,150.02,20.0]
[1727287820501,23.776884,150.06,150.02,20.0]
[1727287821610,6.6631,150.08,150.02,20.0]
[1727287821813,6.6629,150.09,150.02,20.0]
[1727287823322,23.776884,150.08,150.02,20.0]
[1727287823507,20.0,150.12,150.03,16.5336]
[1727287823716,40.4612686,150.13,150.03,31.53361334]
[1727287823920,6.6625,150.1,150.03,30.20069647]
[1727287824604,6.6628,150.09,150.03,30.20069647]
[1727287824920,6.6635,150.07,150.03,16.5336]
[1727287825720,23.776884,150.06,150.03,16.5336]
[1727287827330,20.0,150.11,150.04,13.66709647]
[1727287827517,6.6622,150.1,150.04,13.66709647]
[1727287827715,6.662,150.11,150.04,15.00001686]
[1727287827916,6.6622,150.1,150.05,20.0]
[1727287828233,0.4212686,150.13,150.05,20.0]
[1727287828419,6.6618,150.11,150.05,20.0]
[1727287829235,6.6622,150.1,150.05,20.0]
[1727287829527,6.6622,150.1,150.03,16.5336]
[1727287829706,6.6622,150.1,150.04,20.0]
[1727287830335,23.776884,150.09,150.04,20.0]
[1727287831620,30.439584,150.09,150.04,20.0]
[1727287831817,30.439584,150.09,150.03,16.5336]
[1727287831818,23.776884,150.09,150.03,16.5336]
[1727287832535,23.776884,150.09,150.0,6.0326]
[1727287832536,23.776884,150.05,150.0,6.0326]
[1727287834040,23.776884,150.03,149.99,15.3202]
[1727287834214,30.442284,150.03,149.99,15.3202]
[1727287834416,23.776884,150.03,149.99,15.3202]
[1727287835038,23.776884,150.01,149.97,0.2439729]
[1727287835236,23.776884,150.02,149.97,0.2439729]
[1727287835436,23.776884,150.03,149.97,0.2439729]
[1727287837842,30.441884,150.04,149.97,0.2439729]
[1727287838517,23.776884,150.02,149.97,0.2439729]
[1727287840225,23.776884,150.03,149.97,0.2439729]
[1727287840740,23.776884,150.03,149.97,20.2439729]
[1727287840930,6.94421558,150.1,149.99,20.0]
[1727287841131,39.2351686,150.13,150.0,1.33311683]
[1727287841320,62.6521686,150.13,149.99,20.0]
[1727287841641,6.664,150.06,149.99,20.0]
[1727287841934,6.6637,150.07,149.99,20.0]
[1727287842436,6.6634,150.08,150.0,1.33320188]
[1727287842755,6.6627,150.09,150.01,20.0]
[1727287843049,6.6627,150.09,150.03,16.3904]
[1727287844943,23.776884,150.08,150.03,16.3904]
[1727287846223,23.776884,150.09,150.03,16.3904]
[1727287847819,30.439584,150.09,150.03,16.3904]
[1727287848649,23.776884,150.09,150.03,16.3904]
[1727287848858,0.4212686,150.13,150.04,20.0]
[1727287848859,6.6613,150.12,150.04,20.0]
[1727287849045,6.6613,150.12,150.05,1.33278547]
[1727287849354,6.6613,150.12,150.04,21.33273802]
[1727287849643,6.6618,150.11,150.04,20.0]
[1727287850049,23.776884,150.1,150.04,20.0]
[1727287851052,23.776884,150.1,150.04,21.33283076]
[1727287851253,23.776884,150.1,150.04,20.0]
[1727287851421,23.776884,150.1,150.04,21.33277968]
[1727287852544,30.8593526,150.13,150.04,21.33277968]
[1727287853246,0.4212686,150.13,150.04,21.33277968]
[1727287853557,23.776884,150.11,150.04,21.33277968]
[1727287853850,23.776884,150.11,150.04,20.0]
[1727287855433,23.776884,150.11,150.04,21.33276781]
[1727287855628,30.438984,150.11,150.04,21.33276781]
[1727287856353,30.438984,150.11,150.04,34.99803768]
[1727287856838,23.776884,150.11,150.04,34.99803768]
[1727287857352,23.776884,150.12,150.06,13.66526987]
[1727287857646,0.4212686,150.13,150.07,1.33262515]
[1727287857845,0.4212686,150.13,150.08,15.36]
[1727287858154,0.4212686,150.13,150.08,29.02526987]
[1727287858952,24.1981526,150.13,150.08,15.36]
[1727287859826,0.4212686,150.13,150.1,13.66526987]
[1727287860052,0.4212686,150.13,150.1,14.99753435]
[1727287860425,0.4212686,150.13,150.1,13.66526987]
[1727287860842,0.4212686,150.13,150.11,21.3322214]
[1727287861751,0.4212686,150.13,150.12,13.66526987]
[1727287862260,0.4212686,150.13,150.12,33.66526987]
[1727287862464,0.4212686,150.13,150.12,20.0]
[1727287863234,0.4212686,150.13,150.11,1.3322214]
[1727287863875,0.4212686,150.13,150.12,42.3929]
[1727287864164,0.2439729,150.17,150.15,20.0]
[1727287864363,0.2439729,150.17,150.16,1.33170298]
[1727287864539,0.2439729,150.17,150.15,20.0]
[1727287865335,0.2439729,150.17,150.15,21.33172685]
[1727287865535,0.2439729,150.17,150.15,20.0]
[1727287865735,0.2439729,150.17,150.15,21.33178198]
[1727287867039,0.2439729,150.17,150.13,20.0]
[1727287868040,0.2439729,150.17,150.14,1.33186229]
[1727287868744,0.2439729,150.17,150.15,20.0]
[1727287869068,0.2439729,150.17,150.16,58.97970039]
[1727287869576,0.2439729,150.17,150.16,57.64807836]
[1727287869868,2.6483186,150.22,150.19,20.0]
[1727287870046,2.6483186,150.22,150.2,22.66279527]
[1727287870242,2.6483186,150.22,150.21,20.0]
[1727287871259,2.6483186,150.22,150.19,20.0]
[1727287872164,2.6483186,150.22,150.2,1.33126795]
[1727287872861,2.6483186,150.22,150.19,20.0]
[1727287875366,2.6483186,150.22,150.21,20.0]
[1727287875868,2.6483186,150.22,150.21,21.33105141]
[1727287876240,2.6483186,150.22,150.21,20.0]
[1727287876457,2.6483186,150.22,150.21,21.33104881]
[1727287876873,0.2439729,150.26,150.23,43.776884]
[1727287877048,0.2439729,150.26,150.25,41.33157836]
[1727287877369,0.2439729,150.26,150.25,20.0]
[1727287877741,0.2439729,150.26,150.24,20.0]
[1727287878059,0.2439729,150.26,150.25,42.66237312]
[1727287878239,0.2439729,150.26,150.25,41.33157836]
[1727287880644,0.2439729,150.26,150.24,20.0]
[1727287880849,0.2439729,150.26,150.23,20.0]
[1727287881246,0.2439729,150.26,150.25,20.0]
[1727287881769,0.2439729,150.26,150.25,21.33055674]
[1727287882560,0.2439729,150.26,150.25,42.6621351]
[1727287882845,0.2439729,150.26,150.25,41.33157836]
[1727287883464,0.2439729,150.26,150.24,20.0]
[1727287883747,0.2439729,150.26,150.23,20.0]
[1727287883955,0.2439729,150.26,150.24,1.33079273]
[1727287884449,0.2439729,150.26,150.25,13.62325323]
[1727287884756,0.2439729,150.26,150.25,33.62325323]